bitfinex-derivatives/quotes_SOLF0:USTF0_20250630
["timestamp","ask_amount","ask_price","bid_price","bid_amount"]
[1751298578085,14.56772909,159.07,158.91,2.1081]
[1751298578275,2.2153,159.06,158.91,2.1081]
[1751298578672,2.2153,159.06,158.93,14.56772909]
[1751298578878,2.2153,159.06,158.91,2.1081]
[1751298579078,6.2882,158.99,158.93,6.2904]
[1751298579280,2.2153,159.06,158.9,756.14]
[1751298579781,6.2872,159.02,158.95,6.2895]
[1751298580083,2.2153,159.06,158.9,566.1]
[1751298580476,14.56772909,159.04,158.88,14.56772909]
[1751298581185,16.78302909,159.06,158.88,14.56772909]
[1751298581879,6.288,159.0,158.88,14.56772909]
[1751298582278,16.78302909,159.06,158.88,14.56772909]
[1751298582479,6.2876,159.01,158.95,6.2894]
[1751298582680,2.2153,159.06,158.92,76.98]
[1751298583283,14.56772909,159.05,158.92,76.98]
[1751298583483,2.2153,159.06,158.84,2.1081]
[1751298583484,6.29,158.95,158.9,6.2915]
[1751298583785,91.54772909,159.04,158.85,91.54772909]
[1751298583984,6.2892,158.97,158.92,6.2908]
[1751298584186,76.98,159.04,158.88,14.56772909]
[1751298584478,76.98,159.04,158.89,76.96]
[1751298584679,14.56772909,159.05,158.89,265.34]
[1751298585180,14.56772909,159.02,158.89,265.34]
[1751298585379,14.56772909,159.02,158.76,5.13299417]
[1751298585581,6.292,158.9,158.84,6.294]
[1751298585787,14.56772909,158.96,158.78,16.73682909]
[1751298585980,2.0863,158.95,158.78,16.73682909]
[1751298586179,2.0863,158.95,158.85,6.2934]
[1751298586380,2.0863,158.95,158.78,16.73682909]
[1751298586581,6.2928,158.88,158.78,16.73682909]
[1751298586883,6.2928,158.88,158.77,76.96]
[1751298586884,14.56772909,158.93,158.77,76.96]
[1751298587085,2.0863,158.95,158.77,76.96]
[1751298587283,14.56772909,158.93,158.77,76.96]
[1751298587586,6.2919,158.9,158.85,6.2934]
[1751298587778,14.56772909,158.93,158.77,76.96]
[1751298588185,14.56772909,158.93,158.79,14.56772909]
[1751298588487,2.0863,158.95,158.77,76.96]
[1751298588488,2.0863,158.95,158.82,14.56772909]
[1751298588685,14.56772909,158.99,158.91,6.2909]
[1751298588881,14.56772909,158.99,158.86,76.98]
[1751298589084,4.2357,159.02,158.86,76.98]
[1751298589085,5.65963728,159.02,158.86,76.98]
[1751298589294,16.65862909,159.03,158.86,76.98]
[1751298589491,2.0909,159.03,158.88,14.56772909]
[1751298589679,6.2872,159.02,158.91,14.56772909]
[1751298589879,20.22736637,159.07,158.88,14.56772909]
[1751298590086,14.56772909,159.04,158.88,14.56772909]
[1751298590585,14.56772909,159.01,158.86,79.2372]
[1751298590987,14.56772909,159.02,158.86,79.2372]
[1751298591188,14.56772909,159.02,158.88,14.56772909]
[1751298591582,14.56772909,159.02,158.89,5.76250026]
[1751298592088,14.56772909,158.99,158.89,5.76250026]
[1751298592286,14.56772909,158.96,158.85,643.12]
[1751298592490,14.56772909,158.96,158.86,5.76133307]
[1751298592685,2.1188,158.95,158.85,649.4133]
[1751298592887,6.2901,158.94,158.88,6.2921]
[1751298593081,2.1188,158.95,158.85,643.12]
[1751298593493,2.1188,158.95,158.86,6.2929]
[1751298593689,14.56772909,158.93,158.86,6.2929]
[1751298593994,2.1188,158.95,158.85,76.98]
[1751298594495,2.1188,158.95,158.91,6.291]
[1751298594690,2.1188,158.95,158.85,76.98]
[1751298595090,2.1188,158.95,158.9,6.2914]
[1751298595487,2.1188,158.95,158.85,76.98]
[1751298596690,2.2378,158.98,158.85,91.54772909]
[1751298596991,14.56772909,159.01,158.85,91.54772909]
[1751298597588,6.2892,158.97,158.85,91.54772909]
[1751298597791,14.56772909,159.01,158.85,91.54772909]
[1751298597992,14.56772909,159.01,158.85,76.98]
[1751298598190,6.29,158.95,158.89,6.2919]
[1751298598392,14.56772909,158.96,158.85,77.0]
[1751298598689,97.85642909,158.98,158.85,77.0]
[1751298598896,77.0,158.98,158.85,77.0]
[1751298599395,14.56772909,158.95,158.85,77.0]
[1751298600297,14.56772909,158.95,158.88,6.2924]
[1751298600497,77.0,158.98,158.85,77.0]
[1751298600698,571.81963728,159.02,158.85,77.0]
[1751298600699,20.22736637,158.99,158.85,77.0]
[1751298600999,571.81963728,159.02,158.87,14.56772909]
[1751298601296,16.76562909,159.03,158.88,580.76772909]
[1751298601297,2.1979,159.03,158.88,580.76772909]
[1751298601493,2.1979,159.03,158.91,14.56772909]
[1751298601688,2.1979,159.03,158.92,91.56772909]
[1751298601891,7.54041017,159.14,158.98,14.56772909]
[1751298601892,2.1856,159.1,158.98,14.56772909]
[1751298602094,2.1856,159.1,158.95,14.56772909]
[1751298602399,14.56772909,159.05,158.93,77.0]
[1751298602695,14.56772909,159.05,158.88,566.2]
[1751298602696,14.56772909,159.05,158.88,580.76772909]
[1751298602888,14.56772909,159.02,158.88,580.76772909]
[1751298603094,16.71112909,159.04,158.88,580.76772909]
[1751298603298,14.56772909,158.98,158.87,77.0]
[1751298603492,14.56772909,158.95,158.8,659.90242909]
[1751298603692,6.2907,158.93,158.86,6.2929]
[1751298603896,6.2907,158.93,158.8,659.90242909]
[1751298603897,14.56772909,158.95,158.8,645.3347]
[1751298604196,14.56772909,158.92,158.8,643.18]
[1751298604393,77.0,158.92,158.8,77.0]
[1751298604806,14.56772909,158.91,158.8,77.0]
[1751298605097,4.1302,158.97,158.86,14.56772909]
[1751298605295,2.0469,158.97,158.87,77.0]
[1751298605506,2.1429,159.05,158.89,14.56772909]
[1751298605799,2.1429,159.05,158.92,14.56772909]
[1751298606000,2.1011,159.08,158.95,14.56772909]
[1751298606193,2.1011,159.08,158.96,77.0]
[1751298606701,16.66882909,159.08,158.94,566.26]
[1751298606898,16.66882909,159.08,158.9,77.0]
[1751298606899,14.56772909,159.05,158.9,77.0]
[1751298607200,14.56772909,159.02,158.9,77.0]
[1751298607393,77.0,159.01,158.86,580.82772909]
[1751298607595,14.56772909,158.99,158.86,566.26]
[1751298607794,14.56772909,158.96,158.86,6.2931]
[1751298607997,14.56772909,158.92,158.78,566.18]
[1751298608198,14.56772909,158.92,158.79,11.38501009]
[1751298608398,14.56772909,158.92,158.8,11.38501009]
[1751298608699,82.65963728,158.94,158.81,11.38501009]
[1751298608899,6.2925,158.88,158.84,6.2939]
[1751298609101,14.56772909,158.91,158.78,566.18]
[1751298609102,91.56772909,158.94,158.78,566.18]
[1751298609302,91.56772909,158.94,158.79,11.40938054]
[1751298609498,77.0,158.94,158.8,11.40938054]
[1751298609698,14.56772909,158.88,158.81,11.40938054]
[1751298609899,14.56772909,158.88,158.71,2.1686]
[1751298609900,14.56772909,158.84,158.71,2.1686]
[1751298610198,14.56772909,158.84,158.72,5.87782735]
[1751298610403,14.56772909,158.84,158.73,5.87782735]
[1751298610698,14.56772909,158.84,158.74,5.87782735]
[1751298610901,14.56772909,158.84,158.69,643.18]
[1751298610902,14.56772909,158.84,158.75,5.87782735]
[1751298611199,14.56772909,158.84,158.76,5.87782735]
[1751298611397,14.56772909,158.81,158.77,5.87782735]
[1751298611603,14.56772909,158.78,158.62,77.02]
[1751298611994,77.02,158.8,158.63,14.56772909]
[1751298612195,77.02,158.8,158.66,14.56772909]
[1751298612596,2.2556,158.83,158.75,6.2975]
[1751298612802,2.2556,158.83,158.69,91.36772909]
[1751298613000,2.2556,158.83,158.72,14.56772909]
[1751298613202,76.8,158.86,158.72,14.56772909]
[1751298613399,566.18,158.89,158.75,14.56772909]
[1751298613601,566.18,158.89,158.76,76.8]
[1751298614102,76.8,158.94,158.83,6.2943]
[1751298614314,76.8,158.94,158.78,14.56772909]
[1751298614700,14.56772909,158.93,158.76,76.8]
[1751298614903,14.56772909,158.9,158.76,76.8]
[1751298615304,14.56772909,158.93,158.76,91.36772909]
[1751298615610,14.56772909,158.92,158.79,6.2959]
[1751298615811,14.56772909,158.86,158.72,14.56772909]
[1751298616205,14.56772909,158.83,158.71,568.5775]
[1751298616402,14.56772909,158.77,158.62,581.04772909]
[1751298616610,14.56772909,158.77,158.62,566.48]
[1751298616905,14.56772909,158.74,158.61,2.101]
[1751298617106,14.56772909,158.74,158.6,2.1355]
[1751298617316,188.18,158.75,158.55,91.38772909]
[1751298617317,14.56772909,158.71,158.55,91.38772909]
[1751298617506,14.56772909,158.71,158.55,76.82]
[1751298617507,76.82,158.7,158.55,76.82]
[1751298617903,14.56772909,158.68,158.55,76.82]
[1751298618103,14.56772909,158.68,158.52,16.70322909]
[1751298618322,14.56772909,158.65,158.49,14.56772909]
[1751298618614,6.3027,158.63,158.57,6.3044]
[1751298618814,566.52,158.67,158.55,14.56772909]
[1751298619013,194.593,158.73,158.61,14.56772909]
[1751298619313,194.593,158.73,158.55,643.34]
[1751298619314,14.56772909,158.7,158.56,2.101]
[1751298619605,6.433,158.73,158.58,14.56772909]
[1751298619808,76.82,158.77,158.61,14.56772909]
[1751298620109,14.56772909,158.81,158.64,14.56772909]
[1751298620506,14.56772909,158.82,158.65,566.78]
[1751298620706,6.2949,158.82,158.69,14.56772909]
[1751298620907,76.86,158.89,158.75,14.56772909]
[1751298621103,16.63522909,158.91,158.75,14.56772909]
[1751298621314,2.0675,158.91,158.78,14.56772909]
[1751298621517,2.0675,158.91,158.78,76.86]
[1751298621818,14.56772909,158.89,158.78,76.86]
[1751298622010,14.56772909,158.89,158.76,2.1168]
[1751298622215,14.56772909,158.86,158.74,6.2977]
[1751298622507,2.0675,158.91,158.7,2.1112]
[1751298622508,14.56772909,158.83,158.7,2.1112]
[1751298622707,6.2949,158.82,158.76,6.2971]
[1751298622909,78.9807,158.85,158.71,14.56772909]
[1751298623218,78.9807,158.85,158.72,2.1947]
[1751298623511,93.54842909,158.85,158.72,2.1947]
[1751298623815,93.54842909,158.85,158.74,6.2979]
[1751298624209,93.54842909,158.85,158.7,2.1112]
[1751298624511,14.56772909,158.82,158.68,14.56772909]
[1751298624907,14.56772909,158.82,158.67,568.9929]
[1751298625110,14.56772909,158.82,158.68,14.56772909]
[1751298625309,78.9807,158.85,158.75,6.2975]
[1751298625509,78.9807,158.85,158.7,14.56772909]
[1751298625704,78.9807,158.85,158.73,14.56772909]
[1751298625908,14.56772909,158.83,158.67,566.78]
[1751298626406,14.56772909,158.83,158.74,6.2979]
[1751298626610,14.56772909,158.83,158.67,643.62]
[1751298627009,6.2969,158.77,158.71,6.2991]
[1751298627310,14.56772909,158.8,158.67,566.78]
[1751298627504,6.2967,158.78,158.67,566.78]
[1751298627703,14.56772909,158.8,158.67,566.78]
[1751298628106,78.9807,158.85,158.68,14.56772909]
[1751298628305,78.9807,158.85,158.71,14.56772909]
[1751298628506,85.2744,158.85,158.79,6.2959]
[1751298628707,76.86,158.85,158.74,14.56772909]
[1751298629507,14.56772909,158.88,158.74,14.56772909]
[1751298629815,14.56772909,158.88,158.72,78.8905]
[1751298630510,2.2226,158.9,158.72,78.8905]
[1751298630710,16.79032909,158.9,158.74,14.56772909]
[1751298630920,16.79032909,158.9,158.77,14.56772909]
[1751298630921,2.2226,158.9,158.77,14.56772909]
[1751298631213,14.56772909,158.96,158.8,14.56772909]
[1751298631404,14.56772909,158.96,158.81,76.86]
[1751298631606,76.86,158.97,158.83,14.56772909]
[1751298632114,6.2901,158.94,158.88,6.2924]
[1751298632315,76.86,158.97,158.83,14.56772909]
[1751298632512,76.84,159.03,158.89,14.56772909]
[1751298632710,76.84,159.03,158.9,76.84]
[1751298633115,2.1502,159.06,158.92,14.56772909]
[1751298633421,14.56772909,159.12,158.93,2.2515]
[1751298633713,6.2887,158.98,158.91,2.1275]
[1751298633916,14.56772909,159.0,158.88,76.84]
[1751298634117,6.2892,158.97,158.9,6.2916]
[1751298634318,14.56772909,159.0,158.88,76.84]
[1751298634715,6.2894,158.96,158.88,76.84]
[1751298635115,14.56772909,159.0,158.88,76.84]
[1751298635315,6.289,158.97,158.89,6.292]
[1751298635520,14.56772909,159.0,158.89,6.292]
[1751298635721,16.72662909,159.02,158.89,6.292]
[1751298635918,16.72662909,159.02,158.88,83.1324]
[1751298636318,16.72662909,159.02,158.88,76.84]
[1751298636913,2.1589,159.02,158.88,91.40772909]
[1751298637120,581.32772909,159.08,158.91,14.56772909]
[1751298637515,6.288,159.0,158.93,6.2901]
[1751298637917,14.56772909,159.05,158.88,76.84]
[1751298638119,14.56772909,159.02,158.87,16.81922909]
[1751298638320,14.56772909,159.02,158.88,76.8]
[1751298638519,6.2892,158.97,158.9,6.2913]
[1751298638716,14.56772909,159.02,158.9,6.2913]
[1751298638919,14.56772909,159.05,158.89,14.56772909]
[1751298639122,6.2877,159.01,158.92,14.56772909]
[1751298639322,581.32772909,159.08,158.92,14.56772909]
[1751298639822,581.32772909,159.08,158.94,6.2898]
[1751298640016,581.32772909,159.08,158.92,14.56772909]
[1751298640218,581.32772909,159.08,158.95,6.2894]
[1751298640717,581.32772909,159.08,158.96,6.2892]
[1751298640921,76.82,159.1,158.95,91.38317345]
[1751298641121,76.82,159.1,158.96,78.9706]
[1751298641322,91.42317345,159.1,158.98,6.2881]
[1751298641523,91.42317345,159.1,158.96,78.9706]
[1751298641820,6.2879,159.0,158.96,78.9706]
[1751298642020,14.60317345,159.07,158.96,76.78]
[1751298642223,6.2868,159.03,158.96,76.78]
[1751298642422,14.60317345,159.07,158.96,76.78]
[1751298642922,14.60317345,159.08,158.96,76.78]
[1751298643125,76.82,159.1,158.96,76.78]
[1751298643320,14.60317345,159.07,158.92,14.60317345]
[1751298643522,14.60317345,159.04,158.9,76.18]
[1751298643723,14.60317345,158.98,158.8,14.60317345]
[1751298643931,14.60317345,158.96,158.83,14.60317345]
[1751298644225,14.60317345,158.98,158.83,14.60317345]
[1751298644428,14.60317345,158.95,158.83,6.2943]
[1751298644824,14.60317345,158.92,158.8,2.2241]
[1751298645020,14.60317345,158.89,158.75,76.18]
[1751298645431,14.60317345,158.86,158.75,76.18]
[1751298645628,76.18,158.88,158.75,76.18]
[1751298645925,14.64430796,158.97,158.81,20.93950796]
[1751298646130,4.4311,158.96,158.81,90.82430796]
[1751298646720,4.4311,158.96,158.83,6.2944]
[1751298646920,4.4311,158.96,158.81,90.82430796]
[1751298647830,6.2916,158.91,158.81,90.82430796]
[1751298648029,4.4311,158.96,158.81,90.82430796]
[1751298648328,4.4311,158.96,158.86,6.293]
[1751298648626,6.2916,158.91,158.86,6.293]
[1751298648826,4.4311,158.96,158.85,6.2935]
[1751298649021,4.4311,158.96,158.81,90.82430796]
[1751298649425,566.26,159.03,158.87,14.64430796]
[1751298649629,566.26,159.03,158.79,566.2]
[1751298649630,16.74960796,159.04,158.9,14.64430796]
[1751298649832,16.74960796,159.04,158.9,90.82430796]
[1751298650422,6.2878,159.0,158.9,90.82430796]
[1751298650625,4.4439,159.06,158.93,14.64430796]
[1751298650824,14.64430796,159.1,158.96,14.64430796]
[1751298650825,2.1053,159.1,158.96,14.64430796]
[1751298651029,2.1053,159.1,159.01,6.2871]
[1751298651426,6.2856,159.06,159.01,6.2871]
[1751298651624,6.2856,159.06,158.89,568.3322]
[1751298651625,2.1053,159.1,158.95,14.64430796]
[1751298651927,14.64430796,159.05,158.93,76.18]
[1751298652229,6.288,159.0,158.94,6.2899]
[1751298652528,14.64430796,159.05,158.94,6.2899]
[1751298652732,14.64430796,159.05,158.93,82.4704]
[1751298653128,7.79143728,159.16,158.99,14.64430796]
[1751298653433,14.64430796,159.31,159.03,14.64430796]
[1751298653730,14.64430796,159.29,159.17,6.2807]
[1751298653927,14.64430796,159.29,159.12,14.64430796]
[1751298653928,14.64430796,159.29,159.15,76.18]
[1751298654124,76.18,159.3,159.15,90.82430796]
[1751298654330,4.3801,159.33,159.21,14.64430796]
[1751298654524,14.64430796,159.4,159.24,14.64430796]
[1751298654739,14.64430796,159.4,159.25,78.3607]
[1751298655128,76.18,159.41,159.25,78.3607]
[1751298655827,16.79370796,159.44,159.3,14.64430796]
[1751298656026,4.2135,159.47,159.33,14.64430796]
[1751298656226,6.2708,159.43,159.33,14.64430796]
[1751298656428,4.2135,159.47,159.33,14.64430796]
[1751298656429,4.2135,159.47,159.34,6.2743]
[1751298656630,565.8,159.51,159.36,14.64430796]
[1751298656833,2.0658,159.54,159.39,14.64430796]
[1751298657030,2.0658,159.54,159.4,76.12]
[1751298657630,2.0658,159.54,159.4,90.76430796]
[1751298658233,2.0322,159.56,159.4,90.76430796]
[1751298658435,76.12,159.59,159.43,14.64430796]
[1751298658829,6.2684,159.5,159.42,14.64430796]
[1751298659026,14.64430796,159.57,159.42,14.64430796]
[1751298659228,14.64430796,159.54,159.42,76.06]
[1751298659634,14.64430796,159.51,159.36,2.1151]
[1751298659837,14.64430796,159.45,159.33,76.06]
[1751298660136,14.64430796,159.42,159.28,2.1761]
[1751298660327,14.64430796,159.36,159.26,641.4]
[1751298660528,14.64430796,159.36,159.26,76.06]
[1751298660729,14.64430796,159.36,159.22,6.279]
[1751298660938,14.64430796,159.36,159.2,90.70430796]
[1751298661129,2.08,159.41,159.26,14.64430796]
[1751298661336,76.06,159.48,159.32,14.64430796]
[1751298661536,14.64430796,159.51,159.35,14.64430796]
[1751298661733,14.64430796,159.5,159.36,76.04]
[1751298661934,751.72,159.57,159.36,76.04]
[1751298661935,14.64430796,159.47,159.36,76.04]
[1751298662134,76.04,159.51,159.37,14.64430796]
[1751298662335,14.64430796,159.55,159.37,14.64430796]
[1751298662537,76.04,159.57,159.4,14.64430796]
[1751298662736,76.04,159.57,159.41,2.1874]
[1751298663038,14.64430796,159.59,159.43,14.64430796]
[1751298663237,14.64430796,159.59,159.44,76.04]
[1751298664146,14.64430796,159.61,159.45,14.64430796]
[1751298664842,2512.16,160.05,159.45,6.26]
[1751298665049,3140.2,160.15,159.45,6.26]
[1751298665050,14.64430796,159.97,159.82,14.64430796]
[1751298665343,4.1634,160.02,159.83,76.0]
[1751298665645,14.64430796,160.0,159.84,76.0]
[1751298665845,14.64430796,160.0,159.84,90.64430796]
[1751298666051,4.1634,160.02,159.84,76.0]
[1751298666240,14.64430796,159.98,159.84,76.0]
[1751298666537,14.64430796,159.99,159.83,14.64430796]
[1751298666738,14.64430796,159.96,159.82,78.2267]
[1751298667341,14.64430796,159.93,159.82,78.2267]
[1751298667540,14.64430796,159.94,159.82,78.2267]
[1751298667740,76.0,159.98,159.82,78.2267]
[1751298668048,90.64430796,159.98,159.82,78.2267]
[1751298668345,14.64430796,159.95,159.82,78.2267]
[1751298668841,14.64430796,159.92,159.75,14.64430796]
[1751298669143,750.04,159.95,159.74,75.92]
[1751298669441,750.04,159.95,159.79,14.64430796]
[1751298669647,14.64430796,159.98,159.82,14.64430796]
[1751298669846,14.64430796,159.99,159.83,75.92]
[1751298670141,14.64430796,159.93,159.76,14.64430796]
[1751298670342,14.64430796,159.93,159.73,564.28]
[1751298670343,14.64430796,159.93,159.77,75.92]
[1751298670643,14.64430796,159.87,159.72,14.64430796]
[1751298670841,14.64430796,159.84,159.71,75.86]
[1751298671047,14.64430796,159.85,159.71,75.86]
[1751298671249,2.1735,159.87,159.72,14.64430796]
[1751298671450,14.64430796,159.86,159.71,82.1197]
[1751298671743,14.64430796,159.8,159.68,563.84]
[1751298672047,14.64430796,159.77,159.64,75.86]
[1751298672246,75.86,159.81,159.64,75.86]
[1751298672550,14.64430796,159.79,159.64,75.86]
[1751298672751,14.64430796,159.76,159.64,75.86]
[1751298672944,14.64430796,159.73,159.64,75.86]
[1751298673144,14.64430796,159.73,159.58,75.0]
[1751298673345,14.64430796,159.64,159.49,14.64430796]
[1751298673548,14.64430796,159.64,159.5,75.0]
[1751298673754,14.64430796,159.67,159.5,75.0]
[1751298673950,4.1056,159.72,159.5,75.0]
[1751298673951,4.1056,159.72,159.53,6.2668]
[1751298674143,14.64430796,159.64,159.5,75.0]
[1751298674552,14.64430796,159.58,159.47,563.84]
[1751298675048,74.98,159.6,159.47,563.84]
[1751298676155,6.2648,159.59,159.47,563.84]
[1751298676649,74.98,159.6,159.47,563.84]
[1751298676844,14.64430796,159.7,159.53,14.64430796]
[1751298677044,14.64430796,159.7,159.54,74.98]
[1751298677256,14.64430796,159.67,159.54,74.98]
[1751298677446,14.64430796,159.64,159.54,74.98]
[1751298677646,14.64430796,159.67,159.54,74.98]
[1751298678054,14.64430796,159.64,159.54,74.98]
[1751298678248,14.64430796,159.61,159.48,74.98]
[1751298678850,74.98,159.64,159.48,74.98]
[1751298679051,14.64430796,159.55,159.42,74.98]
[1751298679249,2.0954,159.66,159.39,563.84]
[1751298679250,14.64430796,159.52,159.39,563.84]
[1751298679656,14.64430796,159.55,159.39,578.48430796]
[1751298679853,6.2657,159.56,159.42,14.64430796]
[1751298680050,582.76610796,159.59,159.39,563.84]
[1751298680250,568.1218,159.59,159.43,14.64430796]
[1751298680453,6.2653,159.57,159.5,6.2679]
[1751298680849,568.1218,159.59,159.46,75.0]
[1751298681055,14.64430796,159.63,159.46,75.0]
[1751298681356,14.64430796,159.63,159.48,14.64430796]
[1751298681557,14.64430796,159.6,159.47,2.1335]
[1751298681952,14.64430796,159.6,159.5,6.268]
[1751298682148,14.64430796,159.57,159.46,75.0]
[1751298682356,14.64430796,159.54,159.46,75.0]
[1751298682754,14.64430796,159.54,159.35,2.1335]
[1751298682956,14.64430796,159.48,159.44,6.27]
[1751298683154,14.64430796,159.51,159.35,77.1335]
[1751298683658,89.64430796,159.53,159.35,77.1335]
[1751298683856,14.64430796,159.5,159.35,77.1335]
[1751298684052,6.2695,159.47,159.35,77.1335]
[1751298684250,14.64430796,159.5,159.35,77.1335]
[1751298684652,14.64430796,159.47,159.35,77.1335]
[1751298685057,6.2708,159.43,159.37,6.273]
[1751298685257,14.64430796,159.47,159.35,77.1335]
[1751298685453,14.64430796,159.44,159.35,75.0]
[1751298685958,14.64430796,159.5,159.35,75.0]
[1751298686258,14.64430796,159.39,159.01,2507.28]
[1751298686458,14.64430796,159.3,159.16,4.3937]
[1751298686662,14.64430796,159.27,159.16,2.161]
[1751298686853,14.64430796,159.24,159.1,2.161]
[1751298687163,20.92360796,159.22,159.1,2.161]
[1751298687359,14.64430796,159.24,159.1,2.161]
[1751298687863,14.64430796,159.24,159.11,5.60540889]
[1751298688160,14.64430796,159.24,159.12,5.60540889]
[1751298688361,14.64430796,159.21,159.13,5.60540889]
[1751298688557,14.64430796,159.18,159.06,564.12]
[1751298688761,14.64430796,159.18,159.07,5.60620605]
[1751298688962,14.64430796,159.18,159.06,564.12]
[1751298688963,6.2811,159.17,159.1,6.2834]
[1751298689267,4.2024,159.24,159.11,3.32916877]
[1751298689565,14.64430796,159.22,159.05,14.64430796]
[1751298689856,14.64430796,159.22,159.05,75.08]
[1751298690065,14.64430796,159.19,159.05,75.08]
[1751298690365,14.64430796,159.12,158.96,75.08]
[1751298690564,6.2856,159.06,158.97,2.204]
[1751298690765,14.64430796,159.09,158.97,2.204]
[1751298691062,16.68930796,159.11,159.03,6.2863]
[1751298691265,14.64430796,159.05,158.9,75.08]
[1751298691564,14.64430796,159.07,159.0,6.2877]
[1751298691958,14.64430796,159.01,158.67,75.14]
[1751298692253,14.64430796,158.86,158.71,2.204]
[1751298692662,14.64430796,158.89,158.72,14.64430796]
[1751298693060,14.64430796,158.96,158.81,14.64430796]
[1751298693261,14.64430796,158.96,158.82,75.14]
[1751298693854,14.64430796,158.93,158.82,75.14]
[1751298694059,14.64430796,158.93,158.71,2.204]
[1751298694258,14.64430796,158.84,158.66,75.14]
[1751298694460,14.64430796,158.84,158.67,2.1871]
[1751298694677,75.14,158.88,158.68,14.64430796]
[1751298694965,14.64430796,158.86,158.68,14.64430796]
[1751298695165,14.64430796,158.88,158.71,14.64430796]
[1751298695356,75.18,158.92,158.74,14.64430796]
[1751298695357,14.64430796,158.91,158.74,14.64430796]
[1751298695558,14.64430796,158.88,158.75,75.18]
[1751298695755,14.64430796,158.88,158.8,6.2953]
[1751298696161,14.64430796,158.88,158.75,75.18]
[1751298696967,14.64430796,158.85,158.75,75.18]
[1751298697167,14.64430796,158.83,158.75,75.18]
[1751298697362,14.64430796,158.77,158.7,6.2995]
[1751298697563,75.18,158.83,158.68,5.20047]
[1751298697564,14.64430796,158.75,158.68,5.20047]
[1751298697867,14.64430796,158.78,158.72,6.2988]
[1751298698063,14.64430796,158.81,158.68,5.20047]
[1751298698569,2.0399,158.82,158.69,655.62430796]
[1751298698770,14.64430796,158.87,158.72,14.64430796]
[1751298698962,77.4309,158.92,158.75,14.64430796]
[1751298699163,14.64430796,158.91,158.76,75.24]
[1751298699568,6.2921,158.89,158.81,6.2951]
[1751298699865,14.64430796,158.91,158.76,75.24]
[1751298700770,2.1909,158.92,158.76,75.24]
[1751298700960,14.64430796,158.97,158.83,14.64430796]
[1751298701162,2.1909,159.0,158.84,75.28]
[1751298701367,2.1909,159.0,158.9,14.64430796]
[1751298701765,2.1909,159.0,158.87,14.64430796]
[1751298702871,2.1909,159.0,158.85,75.28]
[1751298703067,2.1909,159.0,158.87,14.64430796]
[1751298703467,16.83520796,159.0,158.85,89.92430796]
[1751298703873,6.2883,158.99,158.85,89.92430796]
[1751298704072,16.83520796,159.0,158.84,74.5]
[1751298704275,16.83520796,159.0,158.89,6.292]
[1751298704471,14.64430796,158.97,158.84,74.5]
[1751298704873,6.2897,158.96,158.89,6.2919]
[1751298705167,14.64430796,158.97,158.84,74.5]
[1751298705565,2.1909,159.0,158.84,89.14430796]
[1751298705773,6.2895,158.96,158.84,89.14430796]
[1751298706362,6.2889,158.97,158.84,89.14430796]
[1751298706571,14.64430796,158.99,158.84,89.14430796]
[1751298706967,2.1909,159.0,158.9,14.64430796]
[1751298707164,2.1909,159.0,158.91,74.52]
[1751298707768,4.89422484,158.99,158.91,74.52]
[1751298708077,4.89422484,158.98,158.95,6.2893]
[1751298708263,14.64430796,159.05,158.91,74.52]
[1751298708467,4.79310442,159.04,158.91,74.52]
[1751298708667,11.07980442,159.03,158.91,74.52]
[1751298708868,19.43741238,159.02,158.91,74.52]
[1751298709171,4.79310442,159.01,158.91,74.52]
[1751298709372,4.79310442,159.0,158.91,74.52]
[1751298709574,4.79310442,158.99,158.91,74.52]
[1751298709774,4.79310442,158.99,158.86,14.64430796]
[1751298709775,14.64430796,158.96,158.81,566.0]
[1751298710069,7.0773133,158.95,158.81,566.0]
[1751298710268,4.79310442,158.94,158.85,14.64430796]
[1751298710474,4.79310442,158.93,158.88,14.64430796]